bitfinex-derivatives/quotes_SOLF0:USTF0_20260213
["timestamp","ask_amount","ask_price","bid_price","bid_amount"]
[1770967524338,3.9357316,78.989,78.95,6.58154948]
[1770967525636,3.9357316,78.989,78.951,3.25698039]
[1770967527734,15.3388316,78.986,78.951,3.25698039]
[1770967527937,3.9357316,78.985,78.941,3.36242025]
[1770967528133,3.51786889,78.98,78.941,3.36242025]
[1770967528740,3.9357316,78.985,78.941,3.36242025]
[1770967530544,3.89122365,78.982,78.941,3.36242025]
[1770967530744,3.89122365,78.979,78.941,3.36242025]
[1770967534040,3.89122365,78.969,78.931,11.4108]
[1770967536544,15.29672365,78.969,78.92,14.93026889]
[1770967536744,4.13583155,78.959,78.92,14.93026889]
[1770967536950,4.13583155,78.959,78.919,3.26860417]
[1770967537143,4.13583155,78.958,78.919,3.26860417]
[1770967538455,4.13583155,78.958,78.92,3.51786889]
[1770967539251,4.13583155,78.949,78.91,3.51786889]
[1770967539552,4.13583155,78.947,78.91,3.51786889]
[1770967540246,3.51786889,78.95,78.9,3.51786889]
[1770967540247,4.13583155,78.944,78.9,3.51786889]
[1770967540448,4.13583155,78.944,78.9,6.88442784]
[1770967540649,4.13583155,78.944,78.901,3.36655895]
[1770967541349,4.13583155,78.939,78.901,3.36655895]
[1770967542951,4.13583155,78.939,78.91,3.51786889]
[1770967543358,4.13583155,78.939,78.903,3.25616409]
[1770967547153,3.52444515,78.96,78.921,3.23126328]
[1770967547359,4.13583155,78.959,78.921,3.23126328]
[1770967548762,4.13583155,78.957,78.921,3.23126328]
[1770967552259,11.4075,78.955,78.921,3.23126328]
[1770967552562,4.13583155,78.949,78.901,3.2028299]
[1770967552961,4.13583155,78.939,78.901,3.2028299]
[1770967555468,4.13583155,78.939,78.904,3.2155331]
[1770967558359,4.13583155,78.939,78.896,2.91841779]
[1770967558875,4.13583155,78.939,78.902,11.4149]
[1770967559577,4.13583155,78.939,78.905,2.91960844]
[1770967560772,4.13583155,78.939,78.9,3.52444515]
[1770967560773,4.13583155,78.939,78.907,2.94094621]
[1770967560964,4.03090345,78.949,78.907,2.94094621]
[1770967561784,4.03090345,78.959,78.911,2.94094621]
[1770967561972,3.52444515,78.95,78.911,2.94094621]
[1770967562690,4.03090345,78.949,78.911,2.94094621]
[1770967563077,4.03090345,78.939,78.901,2.90677488]
[1770967564076,4.03090345,78.939,78.902,11.415]
[1770967566690,4.03090345,78.929,78.891,11.4166]
[1770967567384,3.52444515,78.92,78.881,2.8699043]
[1770967567580,4.03090345,78.919,78.881,2.8699043]
[1770967567977,3.52444515,78.91,78.881,2.8699043]
[1770967568177,3.52444515,78.91,78.864,110.32]
[1770967568178,4.03090345,78.909,78.868,11.4199]
[1770967568388,4.03090345,78.909,78.871,2.90451133]
[1770967568579,4.03090345,78.943,78.891,2.90451133]
[1770967568784,4.03090345,78.943,78.852,22.8445]
[1770967568785,4.03090345,78.949,78.901,2.96966891]
[1770967569786,4.03090345,78.949,78.905,14.38426891]
[1770967570986,4.03090345,78.939,78.905,2.96966891]
[1770967573790,7.5553486,78.96,78.916,2.966992]
[1770967573989,4.03090345,78.96,78.921,2.966992]
[1770967574286,150.12,78.977,78.912,11.4136]
[1770967574287,7.5553486,78.95,78.912,11.4136]
[1770967574494,4.03090345,78.949,78.912,11.4136]
[1770967574681,4.03090345,78.939,78.899,2.95738974]
[1770967575084,4.03090345,78.939,78.901,14.37258974]
[1770967575292,4.03090345,78.939,78.902,2.95738974]
[1770967585293,4.03090345,78.939,78.903,11.4149]
[1770967585496,135.74,78.968,78.887,101.14]
[1770967585497,4.03090345,78.964,78.911,2.93939155]
[1770967585695,4.03090345,78.959,78.921,2.93939155]
[1770967587197,150.18895391,78.98,78.868,200.4828]
[1770967587198,4.03090345,78.949,78.91,2.64641081]
[1770967587496,4.03090345,78.949,78.911,2.64641081]
[1770967588697,4.03090345,78.949,78.912,11.4136]
[1770967588890,4.03090345,78.949,78.912,14.12627554]
[1770967589094,4.03090345,78.949,78.913,2.71267554]
[1770967591706,4.03090345,78.949,78.915,2.66362808]
[1770967592705,4.03090345,78.949,78.916,11.413]
[1770967592896,4.03090345,78.949,78.917,2.6628677]
[1770967594998,101.12,78.983,78.89,109.94]
[1770967594999,11.4054,78.969,78.922,2.64268075]
[1770967595304,4.19185268,78.968,78.922,2.64268075]
[1770967595497,4.19185268,78.957,78.922,2.64268075]
[1770967596099,4.19185268,78.957,78.925,11.4117]
[1770967597404,11.406,78.965,78.926,2.67866041]
[1770967597705,15.59785268,78.965,78.926,2.67866041]
[1770967597908,4.19185268,78.964,78.926,2.67866041]
[1770967606605,4.19185268,78.959,78.926,2.67866041]
[1770967606810,4.19185268,78.949,78.918,11.4127]
[1770967607606,4.19185268,78.949,78.911,11.4137]
[1770967607802,4.19185268,78.949,78.905,2.78873768]
[1770967608309,4.19185268,78.946,78.907,2.78873768]
[1770967608507,4.19185268,78.946,78.91,6.31249]
[1770967608803,4.19185268,78.946,78.911,11.4137]
[1770967609112,4.19185268,78.956,78.921,2.90462696]
[1770967609806,4.19185268,78.969,78.921,2.90462696]
[1770967610814,4.19185268,78.964,78.922,2.812021]
[1770967611814,4.19185268,78.964,78.925,2.812021]
[1770967612504,4.19185268,78.964,78.931,2.812021]
[1770967613214,4.19185268,78.98,78.94,3.52375232]
[1770967613412,4.19185268,78.979,78.94,6.33830911]
[1770967613812,4.19185268,78.979,78.941,2.81455679]
[1770967614511,4.19185268,78.979,78.945,2.81455679]
[1770967615614,4.19185268,78.979,78.944,11.4089]
[1770967616010,4.19185268,78.979,78.936,11.4101]
[1770967617314,4.19185268,78.979,78.941,11.4094]
[1770967620008,3.52375232,78.97,78.934,11.4104]
[1770967620218,4.19185268,78.969,78.934,11.4104]
[1770967624521,4.19185268,78.969,78.931,2.57271725]
[1770967625725,4.19185268,78.969,78.932,11.4107]
[1770967634726,3.97061272,78.966,78.931,2.57271725]
[1770967636125,3.52375232,78.97,78.933,2.55303328]
[1770967636628,3.97061272,78.969,78.933,2.55303328]
[1770967639137,3.97061272,78.969,78.936,2.54113565]
[1770967639831,11.4025,78.989,78.951,2.54113565]
[1770967640431,3.97061272,78.997,78.951,2.54113565]
[1770967641727,3.97061272,78.997,78.953,2.72642297]
[1770967641937,3.52375232,78.99,78.953,2.72642297]
[1770967652137,4.14304049,78.959,78.929,2.74798308]
[1770967652337,3.52375232,78.95,78.911,2.74798308]
[1770967653141,3.52375232,78.95,78.916,14.17592301]
[1770967653342,3.52375232,78.95,78.917,2.76292301]
[1770967654743,3.52375232,78.95,78.923,11.412]
[1770967656143,4.13185975,78.949,78.917,2.76292301]
[1770967656548,3.52375232,78.94,78.912,11.4136]
[1770967658851,3.52375232,78.94,78.905,2.92319806]
[1770967658852,4.13185975,78.939,78.902,11.415]
[1770967659243,4.13185975,78.939,78.908,14.33838719]
[1770967659444,4.13185975,78.939,78.9,3.52375232]
[1770967659445,7.65561207,78.95,78.909,2.92428719]
[1770967660752,7.65561207,78.95,78.912,11.4135]
[1770967660957,7.65561207,78.95,78.913,2.8773887]
[1770967662460,7.65561207,78.95,78.916,2.8773887]
[1770967663655,4.13185975,78.939,78.895,2.83263722]
[1770967664056,4.13185975,78.939,78.901,2.83263722]
[1770967664856,4.13185975,78.939,78.903,2.8749241]
[1770967667860,4.13185975,78.929,78.902,11.415]
[1770967669767,4.13185975,78.939,78.902,14.35975119]
[1770967670564,11.4076,78.954,78.908,2.94475119]
[1770967670762,3.5252159,78.95,78.908,2.94475119]
[1770967671065,4.13185975,78.949,78.908,2.94475119]
[1770967671766,4.13185975,78.949,78.911,3.0705648]
[1770967672061,4.13185975,78.959,78.911,3.0705648]
[1770967672271,3.5252159,78.95,78.911,3.0705648]
[1770967672867,3.5252159,78.95,78.915,11.4132]
[1770967675469,7.65707565,78.95,78.915,11.4132]
[1770967676664,4.13185975,78.949,78.915,11.4132]
[1770967676969,4.13185975,78.949,78.911,3.0705648]
[1770967677767,4.13185975,78.949,78.912,11.4136]
[1770967678466,4.13185975,78.949,78.913,2.76636799]
[1770967678668,4.13185975,78.949,78.916,2.76636799]
[1770967679865,4.13185975,78.949,78.917,11.4129]
[1770967680073,4.13185975,78.949,78.91,3.5252159]
[1770967680472,4.1428,78.939,78.902,11.415]
[1770967681879,4.1428,78.929,78.902,11.415]
[1770967683274,4.1428,78.929,78.894,2.81265972]
[1770967687383,11.4098,78.939,78.9,3.5252159]
[1770967687384,4.1428,78.939,78.9,3.5252159]
[1770967687579,38.02,78.973,78.891,3.18216122]
[1770967687580,4.1428,78.929,78.891,3.18216122]
[1770967688783,4.1428,78.929,78.894,11.4162]
[1770967689487,4.1428,78.929,78.897,3.13057336]
[1770967690487,4.1428,78.929,78.899,3.13057336]
[1770967693983,4.1428,78.929,78.898,11.4156]
[1770967696391,4.1428,78.929,78.891,11.4166]
[1770967696592,4.1428,78.929,78.891,14.56221402]
[1770967697693,4.1428,78.929,78.891,11.4166]
[1770967699895,4.1428,78.929,78.894,3.04671158]
[1770967708696,4.1428,78.939,78.899,2.71715175]
[1770967708896,4.1428,78.939,78.901,2.71715175]
[1770967711395,3.90395022,78.982,78.921,2.67524578]
[1770967711603,3.5252159,78.96,78.921,2.67524578]
[1770967711803,3.90395022,78.959,78.921,2.67524578]
[1770967712000,3.90395022,78.949,78.911,2.67524578]
[1770967716592,3.5252159,78.94,78.901,2.59416864]
[1770967716798,3.79600248,78.939,78.901,2.59416864]
[1770967720606,3.79600248,78.939,78.903,11.4148]
[1770967721096,135.48,78.967,78.9,3.5252159]
[1770967721097,3.79600248,78.948,78.907,2.66297144]
[1770967721500,3.5252159,78.94,78.907,2.66297144]
[1770967722005,3.5252159,78.94,78.908,11.4141]
[1770967722210,3.5252159,78.94,78.908,14.07707144]
[1770967723193,3.5252159,78.94,78.909,2.64263265]
[1770967723409,3.79600248,78.948,78.909,2.64263265]
[1770967725106,3.5252159,78.94,78.909,2.64263265]
[1770967726806,3.79600248,78.939,78.909,2.64263265]
[1770967727504,3.79600248,78.939,78.901,11.4152]
[1770967727912,3.79600248,78.939,78.902,2.6568674]
[1770967728705,3.79600248,78.939,78.906,11.4144]
[1770967729710,3.79600248,78.939,78.902,2.6568674]
[1770967735613,3.79600248,78.939,78.904,2.7326003]
[1770967741726,3.79600248,78.939,78.906,2.60713693]
[1770967742116,3.79600248,78.939,78.908,2.60713693]
[1770967746730,4.05237799,78.948,78.914,2.42577015]
[1770967747732,4.05237799,78.948,78.916,2.42615071]
[1770967760144,3.52515999,78.94,78.916,2.42615071]
[1770967760647,4.05237799,78.948,78.916,2.42615071]
[1770967769351,2.96892245,78.927,78.884,2.46580496]
[1770967770851,2.88181381,78.925,78.886,3.93464152]
[1770967771151,2.88181381,78.939,78.891,3.93464152]
[1770967771844,2.88181381,78.939,78.903,3.93464152]
[1770967772753,2.88181381,78.939,78.905,3.93464152]
[1770967777864,2.88181381,78.939,78.907,3.91344787]
[1770967778456,2.88181381,78.939,78.863,15.25128393]
[1770967778457,2.86321212,78.919,78.881,3.91344787]
[1770967779758,2.86321212,78.919,78.883,3.91344787]
[1770967780460,2.86321212,78.919,78.89,11.4168]
[1770967780656,2.86321212,78.919,78.883,3.91344787]
[1770967786665,38.02,78.96,78.861,267.02131689]
[1770967786666,2.79982609,78.909,78.872,15.33284787]
[1770967787363,2.79492557,78.899,78.872,3.91344787]
[1770967787562,2.79492557,78.899,78.862,3.91344787]
[1770967787966,2.79492557,78.899,78.864,11.4204]
[1770967788167,2.79492557,78.899,78.865,3.91344787]
[1770967791769,11.4144,78.907,78.865,3.91344787]
[1770967792070,2.7151318,78.91,78.871,3.91344787]
[1770967792766,2.7151318,78.91,78.875,3.91344787]
[1770967797272,101.16,78.943,78.867,107.6]
[1770967797273,2.74905927,78.929,78.891,3.91344787]
[1770967797484,2.74905927,78.929,78.867,107.6]
[1770967797485,2.74905927,78.948,78.911,3.91344787]
[1770967797675,212.34008712,79.009,78.865,2.20530922]
[1770967797676,2.74905927,78.974,78.926,3.91344787]
[1770967797876,188.86219551,79.009,78.941,3.91344787]
[1770967797877,3.52686861,78.98,78.941,3.91344787]
[1770967798173,2.74905927,78.969,78.927,3.91344787]
[1770967798380,2.74905927,78.969,78.93,3.52686861]
[1770967798880,2.74905927,78.969,78.928,11.4113]
[1770967800276,3.52686861,78.95,78.92,110.74]
[1770967800469,2.98050495,78.949,78.907,110.76]
[1770967800673,2.9880524,78.939,78.905,3.91344787]
[1770967801374,6.29657482,78.95,78.905,3.91344787]
[1770967801678,2.76970621,78.949,78.905,3.91344787]
[1770967802774,2.76970621,78.949,78.91,3.52686861]
[1770967803579,2.90865597,78.939,78.9,3.52686861]
[1770967803874,2.90865597,78.939,78.896,3.8385441]
[1770967804778,2.88928195,78.937,78.896,3.8385441]
[1770967805078,2.88928195,78.937,78.9,3.52686861]
[1770967805472,2.88928195,78.929,78.896,3.8385441]
[1770967805672,2.88928195,78.919,78.881,3.8385441]
[1770967806479,2.88928195,78.919,78.89,3.52686861]
[1770967807075,2.90738109,78.931,78.9,7.36541271]
[1770967807375,2.90738109,78.931,78.836,177.716]
[1770967807376,2.90738109,78.944,78.91,3.52686861]
[1770967807574,2.90738109,78.944,78.911,3.8385441]
[1770967811577,3.52686861,78.95,78.911,3.8385441]
[1770967812178,2.91576556,78.955,78.911,3.8385441]
[1770967813883,2.91576556,78.955,78.913,3.8385441]
[1770967814679,2.91576556,78.955,78.914,11.4133]
[1770967814984,2.91576556,78.955,78.915,3.8385441]
[1770967815487,2.89871102,78.949,78.902,3.8385441]
[1770967815786,2.89871102,78.949,78.911,3.8385441]
[1770967816888,2.89871102,78.949,78.911,15.2522441]
[1770967817484,2.89871102,78.949,78.913,11.4134]
[1770967817680,2.89871102,78.949,78.913,15.2519441]
[1770967817985,2.89871102,78.949,78.914,3.8385441]
[1770967822177,3.08938171,78.939,78.902,3.8385441]
[1770967823585,3.88770866,78.969,78.931,3.8385441]
[1770967823886,7.41457727,78.96,78.921,3.8385441]
[1770967824092,3.88770866,78.959,78.921,3.8385441]
[1770967824784,3.88770866,78.959,78.924,11.4118]
[1770967825185,3.88770866,78.959,78.92,3.52686861]
[1770967825186,3.88770866,78.949,78.901,3.8385441]
[1770967826389,7.41457727,78.93,78.891,3.8385441]
[1770967827892,3.88770866,78.93,78.891,3.8385441]
[1770967830394,3.88770866,78.929,78.887,3.8385441]
[1770967830895,3.88770866,78.929,78.89,3.52686861]
[1770967831289,3.88770866,78.929,78.89,7.37395992]
[1770967831782,3.88770866,78.929,78.891,3.84709131]
[1770967831984,3.95065291,78.919,78.872,3.84709131]
[1770967833593,3.52686861,78.9,78.871,11.4194]
[1770967833894,3.95065291,78.909,78.871,11.4194]
[1770967834284,3.95065291,78.909,78.872,4.06148757]
[1770967841995,3.80867725,78.899,78.862,4.06148757]
[1770967842791,3.80867725,78.896,78.862,4.06148757]
[1770967842990,3.52686861,78.89,78.862,4.06148757]
[1770967843191,3.80867725,78.896,78.862,4.06148757]
[1770967843402,3.80867725,78.896,78.852,15.48378757]
[1770967843594,3.80867725,78.896,78.853,4.06148757]
[1770967843899,3.80867725,78.896,78.856,11.4216]
[1770967844290,3.80867725,78.896,78.856,15.48308757]
[1770967844494,3.80867725,78.889,78.856,11.4216]
[1770967846294,3.80867725,78.889,78.85,3.52686861]
[1770967847795,3.80867725,78.889,78.851,11.4224]
[1770967848802,3.80867725,78.886,78.85,3.52686861]
[1770967850906,3.80867725,78.886,78.845,4.06148757]
[1770967851101,3.80867725,78.886,78.85,7.58835618]
[1770967851303,3.80867725,78.88,78.84,4.06148757]
[1770967851506,3.80867725,78.88,78.85,7.58835618]
[1770967851899,3.80867725,78.88,78.83,110.5]
[1770967851900,3.80867725,78.899,78.861,4.06148757]
[1770967852101,101.18,78.925,78.861,4.06148757]
[1770967852102,7.33554586,78.89,78.861,4.06148757]
[1770967852907,3.80867725,78.89,78.861,4.06148757]
[1770967853403,101.18,78.925,78.811,2.20647677]
[1770967853404,11.4141,78.909,78.871,4.06148757]
[1770967854308,3.52880626,78.9,78.871,4.06148757]
[1770967854509,3.80867725,78.905,78.871,4.06148757]
[1770967854709,3.80867725,78.899,78.861,4.06148757]
[1770967856010,3.52880626,78.9,78.861,4.06148757]
[1770967856511,3.80867725,78.898,78.861,4.06148757]
[1770967857405,3.80867725,78.898,78.863,4.06148757]
[1770967857608,15.22307725,78.907,78.871,4.06148757]
[1770967863517,3.99934734,78.909,78.871,4.06483894]
[1770967865517,3.99934734,78.909,78.87,3.52880626]
[1770967865518,3.99934734,78.909,78.873,15.48413894]
[1770967868121,3.99934734,78.909,78.874,4.06483894]
[1770967870216,3.99934734,78.899,78.864,4.06483894]
[1770967870720,3.99934734,78.899,78.872,11.4193]
[1770967870913,3.52880626,78.92,78.881,4.06483894]
[1770967871118,3.99934734,78.923,78.881,4.06483894]
[1770967871414,3.99934734,78.923,78.891,4.06483894]
[1770967871817,7.5281536,78.92,78.871,4.06483894]
[1770967872020,7.5281536,78.92,78.881,4.06483894]
[1770967872222,7.5281536,78.93,78.881,4.06483894]
[1770967872417,3.99934734,78.929,78.891,4.06483894]
[1770967873521,3.99934734,78.929,78.893,4.06483894]
[1770967873720,15.40914734,78.939,78.893,4.06483894]
[1770967874016,3.99934734,78.938,78.893,4.06483894]
[1770967874215,3.99934734,78.938,78.897,4.06483894]
[1770967874416,3.99934734,78.938,78.9,3.52880626]
[1770967874620,3.99934734,78.938,78.901,4.06483894]
[1770967875925,3.99934734,78.949,78.901,4.06483894]
[1770967876816,3.99934734,78.949,78.904,4.06483894]
[1770967877326,3.99934734,78.949,78.911,4.06483894]
[1770967881032,15.40844734,78.944,78.911,4.06483894]
[1770967881328,3.99934734,78.943,78.911,4.06483894]
[1770967882128,7.5281536,78.94,78.902,4.06483894]
[1770967882728,3.99934734,78.939,78.902,4.06483894]
[1770967883130,3.99934734,78.929,78.891,4.06483894]
[1770967884934,3.99934734,78.929,78.893,11.4163]
[1770967885126,3.99934734,78.929,78.893,15.48113894]
[1770967885331,3.99934734,78.929,78.894,4.06483894]
[1770967885927,3.52880626,78.95,78.901,4.06483894]
[1770967886128,3.99934734,78.949,78.911,4.06483894]
[1770967888837,3.52880626,78.94,78.911,4.06483894]
[1770967891035,3.99934734,78.949,78.911,4.06483894]
[1770967894535,3.52880626,78.94,78.911,4.06483894]
[1770967896245,15.3895759,78.947,78.911,4.06483894]
[1770967897434,3.9809759,78.946,78.911,4.06483894]
[1770967898034,3.52880626,78.94,78.911,4.06483894]
[1770967901740,3.9809759,78.946,78.917,11.4128]
[1770967901933,3.9809759,78.946,78.917,15.23464212]
[1770967910747,3.52880626,78.94,78.917,3.82184212]
[1770967911441,3.52880626,78.94,78.909,11.414]
[1770967911648,7.50978216,78.94,78.909,15.23584212]
[1770967913348,7.50978216,78.94,78.91,3.82184212]
[1770967914642,3.52880626,78.94,78.91,3.82184212]
[1770967914843,167.58,78.969,78.91,3.82184212]
[1770967914844,7.50399183,78.96,78.912,3.82184212]
[1770967915345,3.52301593,78.95,78.912,3.82184212]
[1770967915749,3.52301593,78.95,78.915,3.82184212]
[1770967916145,3.9809759,78.969,78.93,3.52301593]
[1770967916344,166.7,78.98,78.933,3.82184212]
[1770967916345,11.404,78.979,78.933,3.82184212]
[1770967916544,3.9809759,78.969,78.933,3.82184212]
[1770967916746,3.52301593,78.96,78.933,3.82184212]
[1770967916947,3.9809759,78.969,78.933,3.82184212]
[1770967917451,3.9809759,78.959,78.921,3.82184212]
[1770967920350,3.9809759,78.959,78.923,3.82184212]
[1770967922254,3.52301593,78.95,78.923,3.82184212]
[1770967922555,4.03329142,78.949,78.918,11.4127]
[1770967922753,4.03329142,78.949,78.919,3.85570424]
[1770967923148,4.03329142,78.949,78.91,3.85570424]
[1770967924744,4.03329142,78.949,78.911,11.4137]
[1770967925456,4.03329142,78.949,78.911,15.26940424]
[1770967926457,4.03329142,78.949,78.912,3.85570424]
[1770967926658,4.03329142,78.949,78.916,3.85570424]
[1770967932658,4.03329142,78.939,78.903,3.85570424]
[1770967932864,3.52301593,78.93,78.903,3.85570424]
[1770967933160,4.03329142,78.929,78.893,3.85570424]
[1770967933362,3.52301593,78.92,78.893,3.85570424]
[1770967934060,4.03329142,78.929,78.893,3.85570424]
[1770967934363,4.03329142,78.929,78.863,23.10588353]
[1770967934364,4.03329142,78.929,78.895,3.85570424]
[1770967935659,3.52301593,78.93,78.895,3.85570424]
[1770967935859,3.52301593,78.93,78.897,3.85570424]
[1770967938258,4.03329142,78.929,78.897,3.85570424]
[1770967941961,4.03329142,78.928,78.888,15.27260424]
[1770967942264,4.03329142,78.919,78.888,15.27260424]
[1770967943167,4.03329142,78.919,78.889,3.85570424]
[1770967944962,3.52301593,78.92,78.889,3.85570424]
[1770967945157,4.03329142,78.928,78.889,3.85570424]
[1770967945567,3.52301593,78.92,78.889,3.85570424]
[1770967951156,7.41397626,78.92,78.889,3.85570424]
[1770967952370,3.89096033,78.919,78.889,3.85570424]
[1770967957868,3.52301593,78.93,78.892,3.83160317]
[1770967958067,3.9408468,78.929,78.892,3.83160317]
[1770967958867,3.9408468,78.929,78.897,3.83160317]
[1770967961277,156.02,78.957,78.899,3.83160317]
[1770967961278,3.9408468,78.938,78.899,3.83160317]
[1770967961978,3.9408468,78.937,78.899,3.83160317]
[1770967963172,3.9408468,78.929,78.899,3.83160317]
[1770967963473,7.46386273,78.92,78.891,3.83160317]
[1770967964480,7.46386273,78.92,78.881,3.83160317]
[1770967964481,3.9408468,78.919,78.881,3.83160317]
[1770967966372,3.9408468,78.919,78.885,3.83160317]
[1770967976080,3.9408468,78.919,78.844,23.10588353]
[1770967976081,7.46698624,78.9,78.872,3.83160317]
[1770967976279,3.9408468,78.899,78.862,3.83160317]
[1770967976884,3.9408468,78.889,78.85,7.35774261]
[1770967977088,3.9408468,78.879,78.84,3.52613944]
[1770967977282,3.9408468,78.879,78.839,3.83160317]
[1770967978189,3.52613944,78.87,78.839,3.83160317]
[1770967978784,3.9408468,78.859,78.824,3.83160317]
[1770967980684,3.9408468,78.859,78.825,3.97915506]
[1770967980882,3.9408468,78.859,78.798,15.40392235]
[1770967980883,3.87207265,78.908,78.851,3.97915506]
[1770967981089,3.87207265,78.899,78.851,3.97915506]
[1770967981289,3.52613944,78.89,78.851,3.97915506]
[1770967981487,3.52613944,78.89,78.852,3.97915506]
[1770967981696,3.87207265,78.889,78.852,3.97915506]
[1770967983091,3.52613944,78.88,78.852,3.97915506]
[1770967984696,3.87207265,78.889,78.852,3.97915506]
[1770967984998,3.52613944,78.89,78.852,3.97915506]
[1770967985796,3.52613944,78.89,78.854,11.422]
[1770967986496,3.52613944,78.89,78.854,15.40115506]
[1770967987387,3.52613944,78.89,78.854,3.97915506]
[1770967987787,3.87207265,78.899,78.854,3.97915506]
[1770967987994,3.52613944,78.9,78.861,3.97915506]
[1770967988189,3.87207265,78.909,78.861,3.97915506]
[1770967988596,3.87207265,78.909,78.871,3.97915506]
[1770967989195,3.87207265,78.919,78.871,3.97915506]
[1770967989590,3.87207265,78.919,78.88,3.52613944]
[1770967989798,11.413,78.917,78.88,3.52613944]
[1770967989999,3.87207265,78.916,78.88,3.52613944]
[1770967990600,3.87207265,78.927,78.881,3.97915506]
[1770967990798,3.87207265,78.927,78.891,3.97915506]
[1770967990994,3.52613944,78.92,78.891,3.97915506]
[1770967991399,7.39821209,78.92,78.88,7.5052945]
[1770967992302,7.39821209,78.92,78.881,3.97915506]
[1770967997912,3.87207265,78.909,78.871,3.97915506]
[1770968002809,3.87207265,78.924,78.881,3.97915506]
[1770968003313,3.87207265,78.935,78.891,3.97915506]
[1770968004223,3.52613944,78.93,78.893,3.97915506]
[1770968004418,3.87207265,78.929,78.893,3.97915506]
[1770968006821,3.87207265,78.929,78.894,15.39525506]
[1770968010626,162.44,78.954,78.871,3.87646548]
[1770968010627,4.05851305,78.909,78.871,3.87646548]
[1770968012525,4.05851305,78.899,78.86,489.92993647]
[1770968012827,4.05851305,78.899,78.86,490.28026251]
[1770968013632,4.05851305,78.889,78.86,486.40379703]
[1770968014733,3.52613944,78.89,78.861,4.09540634]
[1770968016131,3.83894867,78.89,78.85,3.52613944]
[1770968016324,7.36508811,78.89,78.851,4.09540634]
[1770968017134,7.36508811,78.9,78.859,4.09540634]
[1770968017337,7.36508811,78.9,78.86,3.52613944]
[1770968017633,11.4144,78.907,78.861,4.09540634]
[1770968018432,3.83894867,78.906,78.861,4.09540634]
[1770968018633,3.52613944,78.9,78.861,4.09540634]
[1770968019527,3.52613944,78.9,78.863,4.09540634]
[1770968020632,3.83894867,78.899,78.863,4.09540634]
[1770968025531,3.83894867,78.913,78.871,4.09540634]
[1770968025838,3.52613944,78.91,78.871,4.09540634]
[1770968026039,11.4141,78.909,78.871,4.09540634]
[1770968026238,3.83894867,78.908,78.871,4.09540634]
[1770968027142,3.52613944,78.9,78.871,4.09540634]
[1770968030942,3.83894867,78.908,78.872,4.09540634]
[1770968031236,3.52613944,78.9,78.872,4.09540634]
[1770968031442,3.83894867,78.919,78.872,4.09540634]
[1770968031641,3.83894867,78.909,78.872,4.09540634]
[1770968033544,3.83894867,78.907,78.872,4.09540634]
[1770968033945,3.83894867,78.907,78.873,4.09540634]
[1770968034647,11.4146,78.906,78.873,4.09540634]
[1770968035047,3.83894867,78.907,78.873,4.09540634]
[1770968036048,3.83894867,78.899,78.862,11.4207]
[1770968036551,3.83894867,78.899,78.863,4.09540634]
[1770968037447,3.52848311,78.89,78.851,4.09540634]
[1770968037645,7.36743178,78.89,78.851,4.09540634]
[1770968038153,3.83894867,78.89,78.851,4.09540634]
[1770968038453,3.83894867,78.89,78.853,4.09540634]
[1770968038753,3.83894867,78.899,78.853,4.09540634]
[1770968039752,11.4157,78.898,78.853,4.09540634]
[1770968040758,11.4146,78.906,78.871,4.07141264]
[1770968041544,11.4156,78.899,78.871,4.07141264]
[1770968041962,11.83960358,78.961,78.891,4.07141264]
[1770968042252,3.98533498,78.945,78.91,7.59989575]
[1770968042457,3.52848311,78.94,78.91,4.07141264]
[1770968042656,3.52848311,78.94,78.901,4.07141264]
[1770968042848,3.98533498,78.939,78.901,4.07141264]
[1770968043050,3.98533498,78.937,78.901,4.07141264]
[1770968052258,3.52848311,78.93,78.901,4.07141264]
[1770968052856,3.98533498,78.929,78.891,4.07141264]
[1770968053255,3.98533498,78.919,78.88,4.07141264]
[1770968054865,3.98533498,78.919,78.88,15.48951264]
[1770968055361,3.98533498,78.919,78.883,4.07141264]
[1770968055561,3.52848311,78.92,78.883,4.07141264]
[1770968055866,3.52848311,78.94,78.901,4.07141264]
[1770968056966,3.52848311,78.93,78.901,4.07141264]
[1770968057165,3.98533498,78.939,78.901,4.07141264]
[1770968057971,11.41,78.937,78.901,4.07141264]
[1770968059568,3.98533498,78.936,78.901,4.07141264]
[1770968062873,3.98533498,78.929,78.891,4.07141264]
[1770968063270,3.98533498,78.929,78.892,4.07141264]
[1770968064170,3.98533498,78.939,78.892,4.07141264]
[1770968064363,7.51381809,78.93,78.892,4.07141264]
[1770968064863,7.51381809,78.93,78.897,11.4158]
[1770968065063,3.98533498,78.929,78.892,4.07141264]
[1770968066864,3.98533498,78.929,78.894,4.07141264]
[1770968067464,3.98533498,78.939,78.901,4.07141264]
[1770968068369,3.98533498,78.937,78.901,4.07141264]
[1770968068570,3.98533498,78.929,78.892,4.07141264]
[1770968069873,3.98533498,78.928,78.892,4.07141264]
[1770968073074,4.07575687,78.926,78.892,4.07141264]
[1770968074471,11.4118,78.925,78.892,4.07141264]